bitfinex-derivatives/quotes_SOLF0:USTF0_20241229
["timestamp","ask_amount","ask_price","bid_price","bid_amount"]
[1735515081200,12.05780726,189.63,189.55,3.26]
[1735515081505,69.72037795,189.64,189.52,3.26]
[1735515081506,12.05780726,189.6,189.52,3.26]
[1735515081904,2.6429,189.56,189.52,3.26]
[1735515082103,12.05780726,189.6,189.52,3.26]
[1735515083408,2.6431,189.54,189.52,3.26]
[1735515083902,12.05780726,189.57,189.48,3.26]
[1735515086411,2.6431,189.54,189.5,2.6436]
[1735515086604,12.05780726,189.57,189.5,2.6436]
[1735515086801,12.05780726,189.57,189.48,3.26]
[1735515086802,1.4974,189.58,189.48,3.26]
[1735515087004,2.6426,189.58,189.54,2.643]
[1735515087909,2.6423,189.6,189.53,3.26]
[1735515088603,2.6423,189.6,189.55,2.6429]
[1735515089104,2.6424,189.59,189.55,2.6429]
[1735515089710,69.72037795,189.64,189.53,15.31780726]
[1735515090103,69.72037795,189.64,189.54,1.5875]
[1735515090504,3.1207,189.65,189.55,1.6379]
[1735515091609,2.6423,189.6,189.55,4.2807]
[1735515093413,2.6425,189.59,189.55,1.6379]
[1735515093611,12.05780726,189.63,189.51,1.5637]
[1735515093808,12.05780726,189.6,189.51,1.5637]
[1735515094112,12.05780726,189.6,189.51,4.8037]
[1735515094610,12.05780726,189.6,189.51,3.24]
[1735515094806,12.05780726,189.57,189.51,3.24]
[1735515095207,2.6429,189.55,189.51,3.24]
[1735515095605,12.05780726,189.57,189.51,3.24]
[1735515096414,2.643,189.55,189.51,3.24]
[1735515097413,12.05780726,189.57,189.51,3.24]
[1735515097611,2.6428,189.56,189.51,3.24]
[1735515097813,12.05780726,189.6,189.51,3.24]
[1735515098012,12.05780726,189.6,189.54,2.643]
[1735515098013,2.6425,189.59,189.54,2.643]
[1735515098316,12.05780726,189.64,189.51,15.29780726]
[1735515098711,2.6422,189.61,189.54,2.6429]
[1735515098914,2.6422,189.61,189.51,15.29780726]
[1735515099117,3.1207,189.65,189.51,15.29780726]
[1735515099413,2.6423,189.6,189.54,2.643]
[1735515099615,12.05780726,189.63,189.51,15.29780726]
[1735515100113,2.6426,189.58,189.53,2.6432]
[1735515100714,12.05780726,189.63,189.51,3.24]
[1735515100908,12.05780726,189.6,189.46,3.043]
[1735515101113,1.6455,189.59,189.47,3.24]
[1735515101419,2.6429,189.56,189.5,2.6436]
[1735515101614,1.6455,189.59,189.47,3.24]
[1735515101911,1.6455,189.59,189.48,12.05780726]
[1735515102113,2.6425,189.58,189.53,2.6431]
[1735515102311,2.6425,189.58,189.52,3.24]
[1735515103214,12.05780726,189.61,189.52,5.8833]
[1735515103914,2.6425,189.59,189.52,5.8833]
[1735515104112,12.05780726,189.61,189.52,5.8833]
[1735515104411,12.05780726,189.61,189.52,3.24]
[1735515105214,2.6425,189.58,189.54,2.6429]
[1735515106316,2.6424,189.59,189.55,2.6429]
[1735515107222,2.6431,189.54,189.46,3.043]
[1735515107515,3.24,189.6,189.46,3.043]
[1735515107718,3.24,189.6,189.47,3.24]
[1735515107719,12.05780726,189.59,189.47,3.24]
[1735515108109,2.6428,189.56,189.51,2.6434]
[1735515108720,2.643,189.55,189.51,2.6434]
[1735515109110,12.05780726,189.59,189.47,3.24]
[1735515109419,2.6433,189.53,189.49,2.6437]
[1735515113115,2.6434,189.52,189.48,2.6439]
[1735515113313,12.05780726,189.56,189.43,1.6201]
[1735515113517,12.05780726,189.53,189.43,3.24]
[1735515113711,12.05780726,189.53,189.41,67.01780726]
[1735515113712,2.644,189.48,189.44,2.6444]
[1735515113918,4.8784,189.55,189.42,5.26060278]
[1735515114118,12.05780726,189.54,189.42,5.26060278]
[1735515115022,12.05780726,189.54,189.45,2.6443]
[1735515115524,2.6438,189.49,189.45,2.6443]
[1735515115926,2.6438,189.49,189.45,5.8843]
[1735515117125,2.6436,189.51,189.46,2.6441]
[1735515117314,12.05780726,189.54,189.46,2.6441]
[1735515117721,12.05780726,189.54,189.45,3.24]
[1735515117927,12.05780726,189.54,189.42,2.02060278]
[1735515118132,12.05780726,189.54,189.43,3.24]
[1735515118523,2.6437,189.5,189.45,2.6442]
[1735515118728,2.6437,189.5,189.43,3.24]
[1735515119529,2.6437,189.5,189.46,2.6441]
[1735515121930,12.05780726,189.54,189.43,3.24]
[1735515122226,12.05780726,189.54,189.42,3.24]
[1735515122227,12.05780726,189.51,189.42,3.24]
[1735515122531,3.0456,189.5,189.42,3.24]
[1735515122723,3.0456,189.5,189.39,1.6195]
[1735515122921,12.05780726,189.48,189.39,3.24]
[1735515123123,12.05780726,189.48,189.38,79.6683292]
[1735515123325,12.05780726,189.45,189.34,15.39780726]
[1735515123524,12.05780726,189.45,189.34,3.34]
[1735515123831,2.6453,189.38,189.34,5.9858]
[1735515124629,2.6452,189.39,189.35,2.6457]
[1735515125026,12.05780726,189.45,189.34,3.34]
[1735515125325,12.05780726,189.45,189.38,2.6453]
[1735515125626,12.05780726,189.45,189.34,15.39780726]
[1735515125828,2.6444,189.45,189.4,2.6449]
[1735515126740,2.6444,189.45,189.34,15.39780726]
[1735515126741,12.05780726,189.45,189.34,15.39780726]
[1735515127434,2.6449,189.42,189.37,2.6454]
[1735515129039,12.05780726,189.45,189.34,3.34]
[1735515129235,12.05780726,189.45,189.33,1.5119]
[1735515129440,12.05780726,189.45,189.34,3.34]
[1735515129838,2.6448,189.42,189.36,2.6456]
[1735515130036,12.05780726,189.45,189.36,2.6456]
[1735515130342,12.05780726,189.45,189.34,3.34]
[1735515130546,2.645,189.41,189.34,3.34]
[1735515131237,12.05780726,189.45,189.36,2.6456]
[1735515131238,2.6451,189.4,189.36,2.6456]
[1735515132743,2.6449,189.41,189.34,3.34]
[1735515133343,2.6449,189.41,189.36,2.6456]
[1735515133941,12.05780726,189.45,189.36,2.6456]
[1735515134138,2.6452,189.39,189.34,3.34]
[1735515134339,2.6452,189.39,189.34,5.9857]
[1735515134646,2.6452,189.39,189.34,3.34]
[1735515134840,2.6452,189.39,189.35,2.6457]
[1735515135143,2.6452,189.39,189.34,3.34]
[1735515135344,2.6452,189.39,189.35,2.6456]
[1735515135742,12.05780726,189.42,189.33,2.6459]
[1735515135938,12.05780726,189.39,189.32,3.34]
[1735515136643,2.6454,189.37,189.32,3.34]
[1735515136840,12.05780726,189.39,189.32,3.34]
[1735515137249,2.645,189.4,189.32,3.34]
[1735515137444,3.34,189.45,189.32,3.34]
[1735515137445,15.39780726,189.45,189.32,3.34]
[1735515137842,2.6448,189.42,189.38,2.6453]
[1735515138243,12.05780726,189.45,189.32,3.34]
[1735515138545,12.05780726,189.48,189.36,12.05780726]
[1735515138739,12.05780726,189.48,189.37,3.34]
[1735515139342,2.6443,189.46,189.4,2.645]
[1735515139543,2.6443,189.46,189.37,3.34]
[1735515140446,2.6443,189.46,189.41,2.6447]
[1735515140950,12.05780726,189.48,189.41,2.6447]
[1735515141249,2.6443,189.45,189.41,2.6447]
[1735515141647,69.78111107,189.47,189.37,3.34]
[1735515141848,2.6442,189.46,189.37,3.34]
[1735515142346,69.78111107,189.47,189.36,3.34]
[1735515142541,12.05780726,189.45,189.36,3.34]
[1735515142847,2.6448,189.42,189.37,2.6453]
[1735515143247,2.6448,189.42,189.36,3.34]
[1735515143549,2.6448,189.42,189.38,2.6453]
[1735515143749,12.05780726,189.45,189.36,3.34]
[1735515143949,12.05780726,189.48,189.36,15.39780726]
[1735515144546,12.05780726,189.48,189.42,2.6446]
[1735515144748,2.6443,189.46,189.41,3.34]
[1735515146450,2.6444,189.45,189.41,3.34]
[1735515146646,12.05780726,189.48,189.41,3.34]
[1735515147845,12.05780726,189.45,189.38,3.34]
[1735515148350,2.6446,189.43,189.38,3.34]
[1735515148653,12.05780726,189.45,189.38,3.34]
[1735515149348,2.6446,189.43,189.38,3.34]
[1735515149550,12.05780726,189.45,189.38,5.9853]
[1735515149851,12.05780726,189.45,189.36,3.34]
[1735515150545,12.05780726,189.45,189.33,4.7649]
[1735515150745,12.05780726,189.45,189.36,3.34]
[1735515151449,12.05780726,189.48,189.36,3.34]
[1735515151853,2.6445,189.44,189.4,2.6449]
[1735515153054,2.6445,189.44,189.36,3.34]
[1735515153553,2.6445,189.44,189.4,2.6449]
[1735515153749,12.05780726,189.48,189.41,3.28]
[1735515153953,72.96879578,189.5,189.41,3.28]
[1735515154350,2.6439,189.48,189.44,2.6443]
[1735515155445,14.70130726,189.51,189.47,2.6439]
[1735515156959,2.6438,189.49,189.44,2.6445]
[1735515160147,2.6439,189.48,189.44,2.6445]
[1735515160351,12.05780726,189.51,189.45,2.6443]
[1735515160750,2.6438,189.49,189.45,2.6443]
[1735515162957,2.6438,189.49,189.41,3.28]
[1735515163161,1.5631,189.53,189.49,2.6437]
[1735515163358,12.05780726,189.54,189.47,3.28]
[1735515163661,4.2698,189.56,189.49,2.6437]
[1735515163960,69.74285266,189.58,189.47,15.33780726]
[1735515164157,13.55040726,189.6,189.47,15.33780726]
[1735515164363,2.6424,189.59,189.54,2.6429]
[1735515164960,2.6425,189.58,189.54,2.6429]
[1735515166661,4.135,189.6,189.56,2.6427]
[1735515166955,15.20660726,189.63,189.53,3.28]
[1735515168062,12.05780726,189.63,189.53,3.28]
[1735515168261,13.64390726,189.66,189.53,15.33780726]
[1735515168761,2.6416,189.65,189.6,2.6421]
[1735515168964,2.6416,189.65,189.59,3.28]
[1735515169358,2.6416,189.65,189.6,2.6422]
[1735515169658,13.64390726,189.66,189.59,3.28]
[1735515169856,13.64390726,189.66,189.61,2.642]
[1735515169857,16.28530726,189.66,189.61,2.642]
[1735515170058,72.85153264,189.69,189.59,3.28]
[1735515170059,84.9093399,189.69,189.59,3.28]
[1735515170261,2.6409,189.7,189.65,2.6415]
[1735515170453,2.6409,189.7,189.65,3.28]
[1735515170654,13.59060726,189.72,189.65,3.28]
[1735515171362,2.6407,189.71,189.66,2.6414]
[1735515172867,3.2335,189.75,189.65,3.28]
[1735515172868,15.29130726,189.75,189.65,3.28]
[1735515173167,15.29130726,189.75,189.65,15.33780726]
[1735515173465,17.93150726,189.75,189.69,2.6408]
[1735515173860,15.29130726,189.75,189.65,15.33780726]
[1735515174061,2.6404,189.73,189.68,2.6411]
[1735515175356,15.29130726,189.75,189.65,15.33780726]
[1735515175564,17.93160726,189.75,189.65,15.33780726]
[1735515175956,5.8738,189.75,189.65,15.33780726]
[1735515176167,1.556,189.79,189.7,2.6407]
[1735515176168,12.05780726,189.78,189.7,2.6407]
[1735515176368,2.6401,189.75,189.7,5.9207]
[1735515176566,12.05780726,189.78,189.7,3.28]
[1735515176768,2.64,189.76,189.71,2.6407]
[1735515176966,12.05780726,189.78,189.71,2.6407]
[1735515177166,12.05780726,189.78,189.73,2.6404]
[1735515177361,12.05780726,189.78,189.7,3.28]
[1735515177566,12.05780726,189.75,189.71,3.28]
[1735515177870,2.6405,189.73,189.71,3.28]
[1735515178666,12.05780726,189.75,189.7,3.28]
[1735515178866,12.05780726,189.75,189.68,3.28]
[1735515179265,2.6408,189.71,189.68,3.28]
[1735515180071,2.641,189.7,189.62,12.05780726]
[1735515180266,2.641,189.7,189.63,3.28]
[1735515180571,12.05780726,189.72,189.63,3.28]
[1735515180972,12.05780726,189.72,189.61,54.92]
[1735515181269,12.05780726,189.69,189.62,3.28]
[1735515181459,12.05780726,189.69,189.6,3.28]
[1735515181661,12.05780726,189.69,189.6,5.9222]
[1735515181875,12.05780726,189.66,189.52,4.7713]
[1735515182069,2.642,189.62,189.56,2.6428]
[1735515182269,12.05780726,189.66,189.56,2.6428]
[1735515182773,2.6418,189.63,189.56,2.6428]
[1735515183068,12.05780726,189.66,189.58,2.6424]
[1735515183265,2.6415,189.66,189.57,3.24]
[1735515183667,12.05780726,189.69,189.57,3.24]
[1735515183869,2.6417,189.64,189.57,3.24]
[1735515184374,2.6415,189.66,189.57,3.24]
[1735515184574,12.05780726,189.69,189.57,3.24]
[1735515185080,12.05780726,189.69,189.59,2.6424]
[1735515185371,3.24,189.7,189.57,3.24]
[1735515185372,2.6413,189.67,189.57,3.24]
[1735515185573,15.29780726,189.7,189.61,2.6421]
[1735515185962,2.6415,189.66,189.61,2.6421]
[1735515186771,2.6416,189.65,189.6,2.6422]
[1735515187369,2.6416,189.65,189.61,2.642]
[1735515187766,2.6413,189.67,189.61,2.642]
[1735515187970,4.6687,189.71,189.62,3.24]
[1735515189070,2.641,189.7,189.65,2.6415]
[1735515189471,4.6687,189.71,189.62,3.24]
[1735515189673,4.6687,189.71,189.62,5.8818]
[1735515190075,2.6414,189.67,189.62,5.8818]
[1735515190277,12.05780726,189.7,189.6,3.24]
[1735515190677,2.6418,189.63,189.6,3.24]
[1735515191577,2.642,189.62,189.6,3.24]
[1735515192776,2.6418,189.63,189.6,3.24]
[1735515194478,2.6421,189.61,189.6,3.24]
[1735515195374,12.05780726,189.64,189.52,4.7713]
[1735515195581,4.7305,189.63,189.53,3.24]
[1735515196179,2.6423,189.6,189.55,2.6428]
[1735515196385,3.1189,189.63,189.53,15.29780726]
[1735515196884,2.642,189.62,189.53,15.29780726]
[1735515197477,2.6418,189.63,189.53,15.29780726]
[1735515198382,2.642,189.62,189.53,15.29780726]
[1735515198584,12.05780726,189.67,189.53,15.29780726]
[1735515198975,12.05780726,189.64,189.53,15.29780726]
[1735515200480,2.6421,189.62,189.57,2.6426]
[1735515200781,12.05780726,189.64,189.52,4.7713]
[1735515200983,12.05780726,189.61,189.53,3.24]
[1735515202181,2.6426,189.58,189.53,3.24]
[1735515202377,12.05780726,189.64,189.53,3.24]
[1735515203489,2.6418,189.64,189.6,2.6422]
[1735515203882,12.05780726,189.67,189.59,3.24]
[1735515204087,2.6415,189.66,189.62,2.6419]
[1735515204787,2.6413,189.67,189.59,15.29780726]
[1735515205188,2.6413,189.67,189.61,2.642]
[1735515205488,2.6413,189.67,189.59,15.29780726]
[1735515206492,2.6413,189.67,189.62,2.6418]
[1735515207695,2.6413,189.67,189.59,15.29780726]
[1735515207696,2.6413,189.67,189.63,2.6418]
[1735515211291,3.1174,189.69,189.59,15.29780726]
[1735515211486,12.05780726,189.67,189.56,13.68790726]
[1735515211692,12.05780726,189.67,189.55,1.6302]
[1735515211894,2.6422,189.61,189.57,2.6426]
[1735515212400,12.05780726,189.64,189.55,3.24]
[1735515213003,3.1174,189.69,189.52,8.90050871]
[1735515213307,3.1174,189.69,189.57,12.05780726]
[1735515213308,15.17520726,189.69,189.57,12.05780726]
[1735515213502,15.17520726,189.69,189.58,3.22]
[1735515213707,2.6416,189.65,189.61,2.642]
[1735515214304,15.17520726,189.69,189.58,3.22]
[1735515214507,2.6419,189.63,189.59,2.6423]
[1735515215205,12.05780726,189.66,189.58,3.22]
[1735515215405,12.05780726,189.63,189.57,3.22]
[1735515215808,2.6423,189.6,189.57,3.22]
[1735515216209,12.05780726,189.63,189.52,1.5824]
[1735515216405,12.05780726,189.63,189.51,12.05780726]
[1735515216601,4.7525,189.62,189.53,3.22]
[1735515216799,12.05780726,189.6,189.53,3.22]
[1735515217004,2.6429,189.55,189.49,1.5768]
[1735515217203,2.6429,189.55,189.52,3.22]
[1735515217508,12.05780726,189.57,189.52,3.22]
[1735515218011,12.05780726,189.57,189.49,3.22]
[1735515218301,2.6434,189.52,189.49,3.22]
[1735515218508,2.6434,189.52,189.47,82.26216329]
[1735515218708,2.6434,189.52,189.47,85.48216329]
[1735515218910,2.6434,189.52,189.47,82.83826329]
[1735515219105,2.6431,189.54,189.47,82.83826329]
[1735515219309,12.05780726,189.57,189.47,82.83826329]
[1735515220508,2.6429,189.55,189.5,2.6435]
[1735515220908,2.6426,189.58,189.51,2.6434]
[1735515221110,2.6426,189.58,189.52,3.22]
[1735515221413,4.7525,189.62,189.52,3.22]
[1735515222407,2.6424,189.6,189.56,2.6427]
[1735515222618,2.6424,189.6,189.52,3.22]
[1735515222811,4.7525,189.62,189.52,3.22]
[1735515223011,2.6422,189.6,189.56,2.6427]
[1735515223913,2.6424,189.59,189.52,4.7349]
[1735515224912,2.6424,189.59,189.54,2.643]
[1735515225615,4.7525,189.62,189.52,4.7349]
[1735515225820,2.6427,189.57,189.53,2.6432]
[1735515226117,4.7525,189.62,189.52,4.7349]
[1735515226314,4.7525,189.62,189.54,2.643]
[1735515226315,2.6425,189.59,189.54,2.643]
[1735515228209,2.6428,189.56,189.52,5.8633]
[1735515228611,12.05780726,189.6,189.52,3.22]
[1735515229514,2.6426,189.57,189.53,2.6432]
[1735515230118,2.6428,189.56,189.52,5.8633]
[1735515231010,2.6423,189.6,189.52,3.22]
[1735515231616,3.1484,189.62,189.52,3.22]
[1735515231815,12.05780726,189.6,189.52,3.22]
[1735515232514,2.6429,189.56,189.52,3.22]
[1735515232710,12.05780726,189.6,189.52,3.22]
[1735515233122,2.643,189.55,189.51,5.8635]
[1735515235624,12.05780726,189.6,189.51,3.22]
[1735515235818,3.1484,189.62,189.51,3.22]
[1735515236620,12.05780726,189.6,189.51,3.22]
[1735515237321,2.6428,189.56,189.52,2.6432]
[1735515237525,12.05780726,189.6,189.52,2.6432]
[1735515237824,2.6429,189.56,189.52,2.6432]
[1735515238121,12.05780726,189.6,189.52,2.6432]
[1735515238524,2.6429,189.55,189.52,2.6432]
[1735515239521,2.6428,189.56,189.52,2.6432]
[1735515240221,2.6429,189.55,189.52,2.6432]
[1735515240423,12.05780726,189.57,189.47,79.61826329]
[1735515240925,2.6432,189.54,189.47,79.61826329]
[1735515241426,2.6429,189.55,189.47,79.61826329]
[1735515241727,1.5301,189.59,189.47,91.67607055]
[1735515242126,2.6427,189.57,189.53,2.6431]
[1735515242323,3.1484,189.62,189.52,3.22]
[1735515242625,2.642,189.62,189.58,2.6425]
[1735515242827,2.642,189.62,189.58,5.8625]
[1735515244526,12.05780726,189.66,189.58,5.8625]
[1735515244721,2.6421,189.61,189.58,5.8625]
[1735515245420,4.676,189.68,189.58,3.22]
[1735515245624,3.1276,189.68,189.58,3.22]
[1735515245825,3.1276,189.68,189.59,12.05780726]
[1735515246230,5.7688,189.68,189.63,2.6418]
[1735515246430,5.7688,189.68,189.63,5.8618]
[1735515246729,2.6412,189.68,189.63,5.8618]
[1735515246927,2.6412,189.68,189.64,2.6416]
[1735515248034,12.05780726,189.71,189.63,5.8618]
[1735515248227,12.05780726,189.68,189.57,1.5581]
[1735515248429,12.05780726,189.68,189.57,4.7781]
[1735515248628,2.6415,189.66,189.59,2.6422]
[1735515248927,12.05780726,189.68,189.59,2.6422]
[1735515249926,12.05780726,189.68,189.57,3.22]
[1735515250124,12.05780726,189.65,189.57,3.22]
[1735515250529,1.5266,189.67,189.57,3.22]
[1735515251221,2.6418,189.64,189.59,2.6423]
[1735515251833,2.642,189.62,189.58,2.6425]
[1735515252032,2.642,189.62,189.57,3.22]
[1735515252232,1.5266,189.67,189.57,3.22]
[1735515253530,2.6417,189.64,189.6,2.6422]
[1735515254434,2.6417,189.64,189.58,2.6424]
[1735515254628,2.6417,189.64,189.57,3.22]
[1735515255030,2.6414,189.66,189.61,2.642]
[1735515255229,2.6414,189.66,189.62,3.22]
[1735515256031,2.6412,189.68,189.63,2.6417]
[1735515256635,2.6412,189.68,189.64,2.6417]
[1735515257836,12.05780726,189.71,189.62,3.22]
[1735515258135,2.6409,189.7,189.66,2.6414]
[1735515258332,2.6409,189.7,189.62,3.22]
[1735515258527,2.6409,189.7,189.65,2.6415]
[1735515259430,2.6409,189.7,189.62,3.22]
[1735515259629,2.6409,189.7,189.66,2.6413]
[1735515261643,1.5606,189.73,189.64,2.6416]
[1735515261832,1.5606,189.73,189.65,3.22]
[1735515262436,2.641,189.69,189.65,5.8615]
[1735515262635,1.5606,189.73,189.65,3.22]
[1735515263835,2.6412,189.68,189.65,3.22]
[1735515264038,1.5606,189.73,189.65,3.22]
[1735515264633,2.6411,189.68,189.65,3.22]
[1735515266940,2.6405,189.73,189.69,2.641]
[1735515267137,2.6405,189.73,189.65,3.22]
[1735515267840,2.6405,189.73,189.69,2.6409]
[1735515269042,13.63130726,189.76,189.65,3.22]
[1735515269343,2.6409,189.7,189.66,2.6413]
[1735515269644,13.63130726,189.76,189.66,2.6413]
[1735515269840,13.63130726,189.76,189.65,3.22]
[1735515270035,13.63130726,189.76,189.68,2.641]
[1735515271345,2.6407,189.72,189.68,2.641]
[1735515272047,2.641,189.69,189.66,2.6414]
[1735515272241,12.05780726,189.73,189.65,3.22]
[1735515272447,12.05780726,189.7,189.63,3.24]
[1735515272740,2.6412,189.68,189.63,3.24]
[1735515273042,1.5223,189.72,189.63,3.24]
[1735515273235,69.66436958,189.79,189.63,3.24]
[1735515273438,2.6402,189.75,189.71,2.6407]
[1735515275647,12.05780726,189.74,189.7,3.24]
[1735515275947,12.05780726,189.74,189.66,3.24]
[1735515276246,12.05780726,189.74,189.62,3.0788]
[1735515276447,12.05780726,189.74,189.63,3.24]
[1735515276745,12.05780726,189.71,189.62,3.0788]
[1735515277044,12.05780726,189.71,189.63,3.24]
[1735515277249,2.6413,189.67,189.63,5.8818]
[1735515278450,2.6413,189.67,189.63,3.24]
[1735515278649,2.6413,189.67,189.64,2.6417]
[1735515278843,2.6409,189.7,189.65,3.24]
[1735515279350,2.6409,189.7,189.66,2.6413]
[1735515280352,2.6409,189.7,189.67,2.6411]
[1735515281451,12.05780726,189.74,189.65,3.24]
[1735515281848,1.5503,189.75,189.65,3.24]
[1735515282049,2.6402,189.73,189.7,2.6406]
[1735515282555,2.64,189.75,189.71,2.6404]
[1735515283053,2.6402,189.74,189.71,2.6404]
[1735515283355,2.6402,189.74,189.7,3.24]
[1735515283555,2.6402,189.74,189.7,5.8807]
[1735515283750,69.66436958,189.79,189.7,3.24]
[1735515283947,12.05780726,189.81,189.7,3.24]
[1735515284550,62.57060641,189.84,189.7,3.24]
[1735515284756,12.05780726,189.81,189.7,3.24]
[1735515285354,2.6399,189.77,189.7,3.24]
[1735515286351,2.64,189.76,189.72,2.6405]
[1735515287153,2.6402,189.75,189.7,5.8807]
[1735515287457,12.05780726,189.78,189.7,3.24]
[1735515288149,2.6403,189.74,189.7,3.24]
[1735515289154,2.6403,189.74,189.7,5.8807]
[1735515290657,12.05780726,189.78,189.7,3.24]
[1735515291657,2.6401,189.74,189.7,3.24]
[1735515294461,12.05780726,189.78,189.68,2.6408]
[1735515294462,2.6403,189.72,189.68,2.6408]
[1735515294664,12.05780726,189.75,189.68,3.24]
[1735515295759,2.6405,189.71,189.68,3.24]
[1735515297363,2.6401,189.74,189.68,3.24]
[1735515298458,2.6401,189.74,189.7,2.6405]
[1735515299064,12.05780726,189.78,189.68,3.24]
[1735515299270,12.05780726,189.81,189.72,2.6402]
[1735515299468,12.05780726,189.81,189.73,3.24]
[1735515300068,2.6397,189.76,189.73,3.24]
[1735515301161,2.6397,189.76,189.73,5.8801]
[1735515301861,2.6392,189.8,189.76,2.6397]
[1735515302371,2.6392,189.8,189.75,2.6397]
[1735515302768,2.6392,189.8,189.73,3.24]
[1735515302967,2.6392,189.8,189.75,2.6397]
[1735515305469,2.6391,189.81,189.76,2.6397]
[1735515305668,2.6391,189.81,189.73,3.24]
[1735515306269,2.6391,189.81,189.76,7.69302973]
[1735515306470,2.6391,189.81,189.78,2.6394]
[1735515306670,2.6391,189.81,189.79,3.24]
[1735515307181,10.33192973,189.83,189.79,3.24]
[1735515307470,7.69302973,189.83,189.79,3.24]
[1735515307865,69.64157212,189.89,189.79,3.24]
[1735515308064,7.69302973,189.85,189.79,5.8792]
[1735515309271,2.6388,189.83,189.79,5.8792]
[1735515310676,2.6386,189.85,189.81,2.639]
[1735515310875,69.64157212,189.89,189.81,2.639]
[1735515311075,7.69302973,189.87,189.81,2.639]
[1735515311871,2.6385,189.85,189.82,2.6389]
[1735515312375,69.64157212,189.89,189.85,2.6384]
[1735515312574,69.64157212,189.89,189.85,3.24]
[1735515313372,77.33460185,189.89,189.85,3.24]
[1735515313570,7.69302973,189.87,189.81,2.6389]
[1735515313771,7.69302973,189.85,189.82,3.24]
[1735515313977,7.69302973,189.83,189.78,3.24]
[1735515314178,2.6392,189.8,189.78,3.24]
[1735515314678,2.6384,189.86,189.78,5.8794]
[1735515314869,7.69302973,189.84,189.78,5.8794]
[1735515315272,2.639,189.82,189.78,5.8794]
[1735515315477,69.64157212,189.89,189.78,10.93302973]
[1735515315677,7.69302973,189.85,189.8,2.6391]
[1735515316585,7.69302973,189.87,189.8,7.69302973]
[1735515316877,77.33460185,189.89,189.82,7.69302973]
[1735515317075,77.33460185,189.89,189.83,3.24]
[1735515317477,1.37820014,189.91,189.83,3.24]
[1735515317776,7.69302973,189.89,189.83,3.24]
[1735515317973,2.6382,189.87,189.83,5.8786]
[1735515318174,7.69302973,189.89,189.83,5.8786]
[1735515318485,7.69302973,189.89,189.84,3.24]
[1735515318879,1.5275,189.97,189.8,7.69302973]
[1735515318880,7.69302973,189.87,189.8,7.69302973]
[1735515319183,7.69302973,189.87,189.81,3.24]
[1735515319379,2.6389,189.84,189.81,5.8792]
[1735515320280,2.6389,189.84,189.8,7.69302973]
[1735515320281,2.6391,189.83,189.8,10.33242973]
[1735515320582,7.69302973,189.85,189.7,1.5056]
[1735515320781,3.2093,189.93,189.75,2.6401]
[1735515320782,2.6397,189.79,189.75,2.6401]
[1735515321082,7.69302973,189.79,189.74,3.24]
[1735515321582,2.64,189.77,189.74,3.24]
[1735515322578,2.64,189.76,189.74,3.24]
[1735515322774,3.0974,189.86,189.73,10.93302973]
[1735515322976,7.69302973,189.82,189.75,7.69302973]
[1735515323779,2.6396,189.8,189.75,2.6401]
[1735515324081,7.69302973,189.82,189.75,2.6401]
[1735515324284,12.02344044,189.83,189.75,2.6401]
[1735515325585,2.6396,189.79,189.75,2.6401]
[1735515326283,2.6392,189.82,189.74,12.02344044]
[1735515326487,3.0974,189.86,189.77,12.02344044]
[1735515326682,3.0974,189.86,189.78,3.24]
[1735515327088,2.639,189.83,189.78,5.8796]